Cogmind - Beta 16 @@@ ROGUE MODE // 2025.12.20 @ 22:59:58 Player: 0_0 Result: Destroyed self with EMP Blaster Performance ------------- Evolutions (0) 0 Regions Visited (3) 600 Robots Destroyed (6) 30 Value Destroyed (114) 114 Prototype IDs (2) 40 Alien Tech Used (0) 0 Bonus (0) 0 TOTAL SCORE: 784 Bonus ------- None Cogmind --------- Core Integrity 0/250 Matter 292/300 Energy 8/100 System Corruption 0% Temperature Cool (0) Movement Core (200) Ox3 Location -10/Subcaves Parts ------- > --- POWER (1) -------- (None) > --- PROPULSION (2) --- (None) > --- UTILITY (2) ------ Heat Sink Small Storage Unit > --- WEAPON (2) ------- EMP Blaster > --- INVENTORY (8) ---- Beam Cannon Assault Rifle EMP Blaster EMP Blaster Peak State ------------ > --- POWER ------------ Light Ion Engine > --- PROPULSION ------- Aluminum Leg Aluminum Leg > --- UTILITY ---------- Heat Sink Small Storage Unit > --- WEAPON ----------- Small Laser EMP Blaster > --- INVENTORY -------- Beam Cannon Assault Rifle EMP Blaster EMP Blaster [Rating: 8] Favorites ----------- Power Light Ion Engine Engine Light Ion Engine Propulsion Aluminum Leg Leg Aluminum Leg Utility Small Storage Unit Device Heat Sink Storage Small Storage Unit Weapon Small Laser Energy Gun Small Laser Ballistic Gun Light Assault Rifle Launcher EMP Blaster Special Weapon Enhanced Flamer Build | -11 -10 -10 -10 ------- Run | Yrd Mat Min Sub Slots Evolved . | . . . . Power . | . . . . Propulsion . | . . . . Utility . | . . . . Weapon . | . . . . Parts Attached 10 | 6 1 . 3 Power 2 | 1 . . 1 Engine 2 | 1 . . 1 Core . | . . . . Reactor . | . . . . Propulsion 2 | 2 . . . Treads . | . . . . Leg 2 | 2 . . . Wheel . | . . . . Hover . | . . . . Flight . | . . . . Utility 2 | 1 1 . . Device 1 | . 1 . . Storage 1 | 1 . . . Processor . | . . . . Hackware . | . . . . Protection . | . . . . Artifact . | . . . . Weapon 4 | 2 . . 2 Energy Gun 1 | 1 . . . Energy Cannon . | . . . . Ballistic Gun 1 | 1 . . . Ballistic Cannon . | . . . . Launcher 1 | . . . 1 Special Weapon 1 | . . . 1 Impact Weapon . | . . . . Slashing Weapon . | . . . . Piercing Weapon . | . . . . Special Melee Weapon . | . . . . Unidentified Prototypes . | . . . . Parts Lost 6 | . . 1 5 Power 1 | . . . 1 Propulsion 2 | . . . 2 Utility . | . . . . Weapon 3 | . . 1 2 Highest Loss Streak 2 | . . 1 2 To Critical Strikes . | . . . . Average Backups 4 | 2 2 6 4 Power . | 1 1 1 . Propulsion . | . . . . Utility . | . . . . Weapon 3 | . 1 5 4 Tool/Special . | . . . . Unused Backups 4 | . . . 4 Power . | . . . . Propulsion . | . . . . Utility . | . . . . Weapon 4 | . . . 4 Tool/Special . | . . . . Average Slot Usage (%) 90 | . 94 83 90 Engine 10 | . 14 3 11 Leg 25 | . 28 28 23 Device 12 | . 8 14 14 Storage 14 | . 14 14 14 Energy Gun 12 | . 14 14 11 Ballistic Gun 4 | . 14 8 . Launcher 7 | . . . 12 Special Weapon 1 | . . . 2 Peak Build Rating 8 | 6 7 7 8 Average Rating 6 | 4 6 5 7 On Entrance 4 | . 6 7 5 Avg Prop Armor Cover (%) . | . . . . Naked Turns . | . . . . Heaviest Build 14 | 10 11 11 14 Greatest Support 20 | 20 20 20 20 Greatest Overweight (x) 3 | . . . 3 Average Overweight (x) . | . . . . Largest Inventory Capacity 8 | 8 8 8 8 Average Capacity 7 | 6 8 8 8 Most Carried 6 | 5 6 6 5 Average Carried 4 | 2 2 6 4 Final Capacity 8 | 8 8 8 8 Final Carried 6 | 2 6 6 4 Class Distribution -------------------- 100% | Mutant Dominant Class ---------------- Mutant | -10/Materials Mutant | -10/Mines Mutant | -10/Subcaves Resources | -11 -10 -10 -10 ----------- Run | Yrd Mat Min Sub Matter Collected 309 | 260 30 . 19 Remotely . | . . . . Salvage Created 109 | . 73 . 36 Parts 9 | . 5 . 4 Haulers Intercepted . | . . . . Recyclers Shooed . | . . . . Parts Field Recycled . | . . . . Retrieved Matter . | . . . . Parts Self-Destructed 8 | . . . 8 Prevented . | . . . . Parts Restored . | . . . . Kills | -11 -10 -10 -10 ------- Run | Yrd Mat Min Sub Combat Hostiles Destroyed 6 | . 3 . 3 Guns 3 | . 3 . . Cannons 1 | . . . 1 AOE 2 | . . . 2 Classes Destroyed 3 | . 2 . 1 Swarmer 4 | . 2 . 2 Grunt 1 | . 1 . . Subdweller 1 | . . . 1 Best Kill Streak 2 | . 2 . 2 Combat Bots Only 2 | . 2 . 2 Max Kills in Single Turn 1 | . 1 . 1 Gunslinging . | . . . . Exploded 1 | . . . 1 Melee . | . . . . Uniques/NPCs Destroyed . | . . . . Combat | -11 -10 -10 -10 -------- Run | Yrd Mat Min Sub Hostile Shots Fired 104 | . 42 18 44 Missed 44 | . 19 9 16 Hits 60 | . 23 9 28 Melee 3 | . . 3 . Projectile 57 | . 23 6 28 AOE 5 | . . 5 . Critical Strikes 1 | . . 1 . Damage Taken 814 | . 215 244 355 Core 258 | . 60 81 117 Absorbed by Shields . | . . . . Core Remaining (%) 100 | 100 . . . Volleys Fired 26 | . 20 . 6 Largest 2 | . 2 . 2 Hottest 120 | . 60 . 120 Shots Fired 36 | . 28 . 8 Gun 30 | . 28 . 2 Cannon . | . . . . Launcher 2 | . . . 2 Special 4 | . . . 4 Kinetic 20 | . 20 . . Thermal 14 | . 8 . 6 Explosive . | . . . . Electromagnetic 2 | . . . 2 Robot Hit Streak 5 | . 4 . 5 Robot Miss Streak 5 | . 5 . 1 Penetration Max . | . . . . Secondary Targets . | . . . . Shots Hit Robots 20 | . 14 . 6 Core Hits 11 | . 6 . 5 Critical Kills . | . . . . Critical Parts Destroyed . | . . . . Critical Strikes . | . . . . Melee Attacks . | . . . . Impact . | . . . . Slashing . | . . . . Piercing . | . . . . Sneak Attacks . | . . . . Combat Hostiles . | . . . . Follow-up Attacks . | . . . . Damage Inflicted 234 | . 140 . 94 Guns 150 | . 140 . 10 Cannons . | . . . . Explosions 39 | . . . 39 Melee . | . . . . Ramming . | . . . . Kinetic 76 | . 76 . . Thermal 119 | . 64 . 55 Explosive . | . . . . Electromagnetic 39 | . . . 39 Impact . | . . . . Slashing . | . . . . Piercing . | . . . . Highest Corruption . | . . . . Average Corruption . | . . . . Corruption Purged . | . . . . Corruption Blocked . | . . . . Overload Shots . | . . . . Overflow Damage . | . . . . Projectiles . | . . . . Explosions . | . . . . Melee . | . . . . Knockbacks . | . . . . Impact . | . . . . Kinetic . | . . . . Secondary . | . . . . Self-Inflicted Damage 11 | . . . 11 Shots 1 | . . . 1 Rammed . | . . . . Targets Rammed . | . . . . Kicked . | . . . . Crushed . | . . . . Highest Temperature 82 | . 82 . . Average Temperature 46 | . 46 . . Received Heat Transfer 92 | . 66 20 6 Siege Activations . | . . . . Martial Activations . | . . . . Shielding Activations . | . . . . Robots Disrupted . | . . . . Combat Hostiles . | . . . . Robots Corrupted . | . . . . Combat Hostiles . | . . . . Parts Fried . | . . . . Impact Corruptions . | . . . . Robots Melted . | . . . . Combat Hostiles . | . . . . Parts Melted 1 | . . . 1 Heat Transferred 495 | . 150 . 345 Parts Sabotaged . | . . . . Parts Stolen . | . . . . Parts Stripped . | . . . . Power Chain Reactions . | . . . . Alert | -11 -10 -10 -10 ------- Run | Yrd Mat Min Sub Maximum Alert Level . | . . . . Low Security (%) 100 | 100 100 100 . Level 1 . | . . . . Level 2 . | . . . . Level 3 . | . . . . Level 4 . | . . . . Level 5 . | . . . . High Security . | . . . . Max Security . | . . . . Peak Influence 70 | . 70 15 . Initial 7 | . . 7 . Average 16 | . 29 2 . Influence Increases 225 | . 110 15 100 Destroy 0b10 Robot/C 100 | . 60 . 40 Destroy Leader 20 | . 20 . . Lose Combat Pursuer 105 | . 30 15 60 Influence Decreases 135 | . 90 30 15 Entered New Map 16 | . . 13 3 Time Decay 109 | . 90 17 2 Lost Part 10 | . . . 10 Squads Dispatched 1 | . 1 . . Investigation . | . . . . Extermination . | . . . . Reinforcement 1 | . 1 . . Assault . | . . . . Garrison . | . . . . Intercept . | . . . . Searches Triggered . | . . . . Construction Impeded . | . . . . Haulers Reinforced . | . . . . Active Scanning Responses . | . . . . Cargo Convoy Interrupts . | . . . . Stealth | -11 -10 -10 -10 --------- Run | Yrd Mat Min Sub Distress Signals . | . . . . Communications Jammed . | . . . . Distress Signals . | . . . . Times Spotted 37 | . 10 21 6 Peak Tracking Total 19 | . 3 19 6 Tactical Retreats 4 | . 1 2 1 Traps | -11 -10 -10 -10 ------- Run | Yrd Mat Min Sub Traps Triggered . | . . . . Indirectly . | . . . . Trap Hack Attempts . | . . . . Triggered . | . . . . Disarmed . | . . . . Reprogrammed . | . . . . Reused . | . . . . Traps Extracted . | . . . . Installed . | . . . . Triggered . | . . . . Machines | -11 -10 -10 -10 ---------- Run | Yrd Mat Min Sub Machines Disabled . | . . . . Max in Single Turn . | . . . . Machines Repaired . | . . . . Machines Dismantled . | . . . . Machines Sabotaged . | . . . . Overloaded Fab Kills . | . . . . Hacking | -11 -10 -10 -10 --------- Run | Yrd Mat Min Sub Machines Accessed 1 | . 1 . . Terminals 1 | . 1 . . Fabricators . | . . . . Repair Stations . | . . . . Recycling Units . | . . . . Scanalyzers . | . . . . Garrison Access . | . . . . Total Hacks 2 | . 2 . . Successful 1 | . 1 . . Failed 1 | . 1 . . Catastrophic . | . . . . Database Lockouts . | . . . . Manual . | . . . . Terminals 2 | . 2 . . Fabricators . | . . . . Repair Stations . | . . . . Recycling Units . | . . . . Scanalyzers . | . . . . Garrison Access . | . . . . Terminal Hacks 1 | . 1 . . Prototype ID Bank 1 | . 1 . . Fabricator Hacks . | . . . . Repair Station Hacks . | . . . . Recycling Unit Hacks . | . . . . Scanalyzer . | . . . . Garrison Access Hacks . | . . . . Unauthorized Hacks . | . . . . Terminals . | . . . . Fabricators . | . . . . Repair Stations . | . . . . Recycling Units . | . . . . Scanalyzers . | . . . . Garrison Access . | . . . . Data Cores Recovered . | . . . . Used . | . . . . Hacking Detections 1 | . 1 . . Full Trace Events . | . . . . Feedback Events . | . . . . Feedback Blocked . | . . . . Robot Schematics Acquired . | . . . . Robots Built . | . . . . Authchips . | . . . . Time . | . . . . Total Robot Build Rating . | . . . . Part Schematics Acquired . | . . . . Parts Built . | . . . . Authchips . | . . . . Time . | . . . . Total Part Build Rating . | . . . . Part Studies Acquired . | . . . . Parts Repaired . | . . . . Time . | . . . . Parts Recycled . | . . . . Recycled Matter . | . . . . Retrieved Matter . | . . . . Retrieved Components . | . . . . Parts Scanalyzed . | . . . . Part Schematics Acquired . | . . . . Parts Damaged . | . . . . Bothacking | -11 -10 -10 -10 ------------ Run | Yrd Mat Min Sub Used RIF Installer . | . . . . Robots Hacked . | . . . . Non-combat . | . . . . Combat . | . . . . Robot Hacks Applied . | . . . . Relay Couplers Released . | . . . . Fabnet Peak Effective % . | . . . . Robots Rewired . | . . . . Allies Hacked . | . . . . Hacks Repelled . | . . . . Allies | -11 -10 -10 -10 -------- Run | Yrd Mat Min Sub Total Allies . | . . . . Largest Group . | . . . . Highest-Rated Group . | . . . . Highest-Rated Ally . | . . . . Total Orders . | . . . . Ally Attacks . | . . . . Total Damage . | . . . . Kills . | . . . . Allies Corrupted . | . . . . Allies Melted . | . . . . Intel | -11 -10 -10 -10 ------- Run | Yrd Mat Min Sub Active Infowar (turns) . | . . . . Robot Analysis Total . | . . . . Derelict Logs Recovered . | . . . . Drone Launches . | . . . . Drone Recoveries . | . . . . Exploration | -11 -10 -10 -10 ------------- Run | Yrd Mat Min Sub Turns Passed 1102 | 57 234 138 673 Spaces Moved 754 | 42 154 103 455 Core 58 | 10 . . 48 Treads . | . . . . Legs 696 | 32 154 103 407 Wheels . | . . . . Hover . | . . . . Flight . | . . . . Fastest Speed 50 | 50 120 120 120 Average Speed 124 | 103 120 120 128 Slowest Speed 200 | 120 120 120 200 Overloaded Moves . | . . . . Propulsion Burnouts . | . . . . Robots Hopped . | . . . . Potential Cave-ins . | . . . . Cave-ins Triggered . | . . . . Exploration Rate (%) 26 | 4 31 42 30 Regions Visited 3 Branch Regions 2 Pre-discovered Areas . | . . . . Known Exits Taken . | . . . . Unknown Exits Taken 3 | 1 1 1 . Scrap Searched . | . . . . Spaces Dug . | . . . . Terrain Destroyed . | . . . . Melee . | . . . . Projectile . | . . . . AOE . | . . . . Terrain Rammed . | . . . . Walls Destroyed . | . . . . Machines Disabled . | . . . . Actions | -11 -10 -10 -10 --------- Run | Yrd Mat Min Sub Total 885 | 55 179 117 534 Wait 83 | . . 15 68 Move 751 | 41 153 102 455 Hop . | . . . . Pick Up 14 | 8 5 . 1 Fast Attach . | . . . . Attach 10 | 6 1 . 3 Detach . | . . . . Swap 1 | . . . 1 Drop . | . . . . Fire 26 | . 20 . 6 Melee . | . . . . Ram . | . . . . Kick . | . . . . Crush . | . . . . Escape Stasis . | . . . . Rewire . | . . . . Trap . | . . . . Miscellaneous . | . . . . Route ------- -11/Scrapyard -10/Materials (discovered 2 exits: [*Min x2]) -10/Mines -10/Subcaves History --------- Turn | Location | Event 22 | -11/Scrapyard | Discovered new exit (range 16) 58 | -11/Scrapyard | Entered Materials 201 | -10/Materials | Discovered new exit (range 13) 260 | -10/Materials | Discovered new exit (range 12) 292 | -10/Materials | Entered Mines 293 | -10/Mines | Assembled infested the area 296 | -10/Mines | Met a Derelict bent on vengeance 298 | -10/Mines | Assisted by a Guerilla fighting off Assembled 314 | -10/Mines | Build established: Mutant 333 | -10/Mines | Core integrity fell below 50% 406 | -10/Mines | Found a hidden stash of uninstalled traps 425 | -10/Mines | Discovered new exit (range 5) 430 | -10/Mines | Entered Subcaves 638 | -10/Subcaves | Shifting Twisted Machinery released Battle Rifle 1014 | -10/Subcaves | Core integrity fell below 20% 1103 | -10/Subcaves | Destroyed self with EMP Blaster Last Messages --------------- 00429_ T-07 Excavator is excavating. LOCATION=UNKNOWN AMBIENT_HEAT=-10 GOAL=ESCAPE 00566_ A5-B7C(u) builds Twisted Machinery. 00590_ BQ-6KF(O) collects matter. 00620_ Acquired Enh. Flamer. Battle Rifle falls loose from the Twisted Machinery. 00815_ BQ-6KF(O) collects matter. 00948_ Z3-5HO(R): "ECOKILL!" 00964_ Aluminum Leg destroyed. 00973_ Lgt. Ion Engine destroyed. 01007_ Sml. Laser destroyed. 01011_ Aluminum Leg destroyed. 01014_ Sub. Optics melted. 01014_ Z3-5HO(R) destroyed. 01019_ Acquired 9 matter. 01083_ Acquired 10 matter. 01096_ Enh. Flamer destroyed. 01101_ S-10 Pest destroyed. Map ----- +----------------------------------------------------+ | ##### #??## ##??????????????????????????? | | #??###### #???# ##???????????????????????????? | | ##??????###??## ##???????????????????????????? | | # #???????????# #???????????????????????????? | | ###?????????# #???????????????????????????? | | # #????????## ##???????????????????????????? | | # #????????# #????????????????????????????? | | # #???????## #????????????????????????????? | | # ##???##### ##???????????????????????????? | | # #???# #???????????????????????????? | | # ##???# #???????????????????????????? | | ## #???# #???????????????????????????? | | # ##???##### ##???????????????????????????? | | # #??####?## ##???????????????????????????? | | # ##?## #### ##??????????????????????????? | | # #?# #?????????????#????????????? | | # #?# ##??????????? #????????????? | | #### ### ###???????? #????????????? | | #?## ##?????? #????????????? | | ## #??## ##???? #????????????? | | ##### ##???# #### #?????????????? | | ##???# ##????#= #??????????????? | | ### ####?????## = ##??????????????? | | #?????????## %%s #???????????????? | | #?????????# *s ##???????????????? | | #?????????# @### #????????????????? | | #### #?????????# #??? ?????????????? | | ### #??# ##?????????# #???? ??????????? | | #?## #? #??????????## #????? ??????????? | | ##??? #???????????# ??????## ??????????? | | ##??? ? ?#???#???????# ??????????????????????? | | ##??## ??### ???????# ?????????????????????? | | ##??? ##?? "???????## ?????????????????????? | | #???? ??? ?"???######?????????????????????? | | ##???? #?? ?" ### ##???###????????????????? | | ##??????#"""" ### ## ##?## #####??????#?????? | | ##??????? """" # "" ### ##???? ???? | | #?????????"""" "" #???? ???? | | #?????????#""" " "" ## ##??? #???? | | ##????????#" # ## # ## #??? #???? | | ##???????#" ### ### #### #### #??? #???? | | #??????## ## ## #??###?## #??? #???? | | #?????##" ### #?????## #??? #???? | | ##????## """ ### ##???## #?## ???? | | ##????## # #??## ### #????? | | #####?# #### #### #????? | | ## ### ## ### ##???? | | ## ## ## # ### ###?? | | ## ##### ### ## ### | | # #### ##???# #??## | +----------------------------------------------------+ Best States ------------- Heat Dissipation 35 Energy Generation 10 Energy Capacity 125 Matter Stores 300 Matter Capacity 300 Sight Range 16 Terrain Scan Density 10 Evasion (%) 55 Item Schematics ----------------- None Robot Schematics ------------------ None Fabricated ------------ Nothing Repaired ---------- Nothing Studied --------- None Alien Tech Used ----------------- None Achievements -------------- None Challenges ------------ None Game ------ Seed ChromaticWeaponArmor Manual? 0 Play Time 00:09:00 Cumulative 20.6 hours Start 2025.12.20 @ 22:53:20 End 2025.12.20 @ 22:59:58 Sessions 1 Manual Loads 0 Difficulty Rogue Special Mode None Game No. 48 Rogue 48 Adventurer 0 Explorer 0 Win Type - Total 0 Types 0/0/0/0/0/0/0/0/0/0 Lore% 29 Gallery% 19 Achievement% 14 Wizard Run 0 Options --------- Layout 1 ASCII 0 Keyboard 0 Movement Mouse Keybinds 0 Fullscreen 1 Font 32/SmallcapsGlow Map View 77x35 Zoom Use 0% Tactical HUD 1 Map Filters NONE Filters NONE Steam 1 RUN: e7fc46c2-bba5-4573-b2fb-47a083235ce3